bitfinex-derivatives/quotes_ETHF0:USTF0_20250422
["timestamp","ask_amount","ask_price","bid_price","bid_amount"]
[1745345116977,47.122,1702.6,1702.5,1.17389]
[1745345117181,2.8794,1703.0,1702.5,4.06809]
[1745345117381,2.8794,1703.0,1702.8,1.17368]
[1745345117684,2.8794,1703.0,1702.6,2.8885]
[1745345117685,1.17369,1702.8,1702.6,4.06229]
[1745345117883,1.17375,1702.7,1702.6,1.2133]
[1745345118384,1.17382,1702.6,1702.5,3.2078]
[1745345118587,2.79952,1702.6,1702.5,3.2078]
[1745345118779,1.14455009,1702.5,1702.4,0.33421186]
[1745345118980,3.99835009,1702.5,1702.4,0.33421186]
[1745345119185,10.32035009,1702.5,1702.4,0.33421186]
[1745345119793,6.322,1702.5,1702.4,11.39117186]
[1745345120085,6.322,1702.5,1702.4,13.89397186]
[1745345120282,1.17365,1702.9,1702.7,1.17375]
[1745345120676,1.17365,1702.9,1702.8,1.6293]
[1745345121192,7.49565,1702.9,1702.8,1.6293]
[1745345121489,7.49565,1702.9,1702.8,1.65863991]
[1745345121683,7.49565,1702.9,1702.8,0.02933991]
[1745345122082,1.12304501,1702.7,1702.6,3.2078]
[1745345122281,1.12304501,1702.7,1702.6,1.6293]
[1745345123183,7.44504501,1702.7,1702.6,1.52003237]
[1745345123392,1.17382,1702.6,1702.5,4.9716]
[1745345123692,2.90892,1702.6,1702.5,4.9716]
[1745345124192,6.322,1702.6,1702.5,11.14549]
[1745345124592,6.322,1702.6,1702.5,15.55649]
[1745345125288,1.7351,1703.0,1702.8,1.17368]
[1745345125887,1.17375,1702.8,1702.6,1.1738]
[1745345126082,8.0571,1703.0,1702.5,12.5904]
[1745345126293,1.6693,1702.9,1702.5,12.5904]
[1745345126484,1.1737,1702.8,1702.7,1.17374]
[1745345126890,2.84296,1702.9,1702.7,1.17374]
[1745345127087,6.322,1702.8,1702.7,1.17374]
[1745345127486,7.49569,1702.8,1702.7,1.20307678]
[1745345127989,7.49569,1702.8,1702.7,0.02933678]
[1745345128187,6.322,1702.8,1702.7,1.20308678]
[1745345128385,6.322,1702.8,1702.7,6.04498678]
[1745345128591,4.411,1703.7,1703.2,1.17341]
[1745345128891,0.00881186,1703.3,1703.1,1.17343]
[1745345129082,1.17348,1703.1,1703.0,1.7036]
[1745345129392,1.17348,1703.1,1703.0,1.76227356]
[1745345129590,1.17348,1703.1,1703.0,0.05867356]
[1745345129891,2.82058,1703.1,1703.0,0.05867356]
[1745345130101,9.14258,1703.1,1703.0,0.05867356]
[1745345130981,9.14258,1703.1,1703.0,1.2535949]
[1745345131189,6.322,1703.1,1703.0,6.1649949]
[1745345131687,7.49548,1703.1,1703.0,0.0800449]
[1745345132284,10.59338,1703.1,1703.0,0.0800449]
[1745345136900,1.06427733,1702.8,1702.7,1.3904]
[1745345137096,1.06427733,1702.8,1702.7,1.28112799]
[1745345137293,1.17375,1702.7,1702.6,6.2226]
[1745345137494,6.1698,1702.9,1702.6,0.02936777]
[1745345137698,3.1914,1702.8,1702.6,0.02936777]
[1745345137900,3.1571,1702.7,1702.6,0.02936777]
[1745345139204,9.4791,1702.7,1702.6,0.05067713]
[1745345140004,9.4791,1702.7,1702.6,1.79657713]
[1745345140205,9.4791,1702.7,1702.6,0.05067713]
[1745345140506,15.65285,1702.7,1702.6,0.05067713]
[1745345140700,14.4791,1702.7,1702.6,0.05067713]
[1745345140898,15.65285,1702.7,1702.6,0.05067713]
[1745345141401,9.4791,1702.7,1702.6,0.05067713]
[1745345143505,9.4791,1702.7,1702.6,1.22449713]
[1745345143706,9.4791,1702.7,1702.6,0.05067713]
[1745345145318,9.4791,1702.7,1702.6,0.08007487]
[1745345146894,9.4791,1702.7,1702.6,1.28329261]
[1745345147298,6.322,1702.7,1702.6,2.94419261]
[1745345147497,6.322,1702.7,1702.6,7.94419261]
[1745345147902,6.322,1702.7,1702.6,12.35219261]
[1745345148202,3.0168,1703.1,1703.0,1.17355]
[1745345148603,45.21681186,1703.3,1703.2,1.17341]
[1745345149108,6.33081186,1703.3,1703.2,1.30413203]
[1745345149311,6.33081186,1703.3,1703.2,2.72513203]
[1745345149808,6.33081186,1703.3,1703.2,5.93293203]
[1745345150502,6.33081186,1703.3,1703.2,10.93293203]
[1745345151100,0.00881186,1703.3,1703.2,10.93293203]
[1745345151705,0.00881186,1703.3,1703.2,12.56373203]
[1745345152108,6.33081186,1703.3,1703.2,7.56373203]
[1745345154708,6.33081186,1703.3,1703.2,7.59317823]
[1745345155095,6.33081186,1703.3,1703.2,7.62262443]
[1745345156699,6.33081186,1703.3,1703.2,7.43301]
[1745345157012,6.33081186,1703.3,1703.2,7.64377693]
[1745345157706,4.62799186,1703.3,1703.2,7.64377693]
[1745345157897,0.04821186,1703.3,1703.2,12.64377693]
[1745345158103,1.86e-06,1703.3,1703.2,12.64377693]
[1745345158909,6.47e-06,1703.4,1703.3,1.17334]
[1745345159109,4.78852647,1703.4,1703.3,1.17334]
[1745345159311,3.20337647,1703.4,1703.3,7.50804]
[1745345159609,0.42793647,1703.4,1703.3,7.50804]
[1745345159802,6.47e-06,1703.4,1703.3,7.71880693]
[1745345160412,3.2078,1704.8,1703.3,13.22812366]
[1745345160705,2.8123,1704.6,1704.5,1.17249]
[1745345160910,43.6123,1704.6,1704.5,1.38325693]
[1745345161105,49.9343,1704.6,1704.5,1.38325693]
[1745345161307,47.122,1704.6,1704.5,1.38325693]
[1745345161506,6.322,1704.6,1704.5,1.38325693]
[1745345162412,6.322,1704.6,1704.5,1.4127312]
[1745345162809,5.11596,1704.6,1704.5,1.4127312]
[1745345163010,5.11596,1704.6,1704.5,1.44220547]
[1745345163316,1.6112,1705.0,1704.9,1.17224]
[1745345163508,1.6112,1705.0,1704.9,4.38004]
[1745345164106,3.2078,1705.4,1705.3,1.17196]
[1745345164306,42.4112,1705.6,1705.3,1.17196]
[1745345164611,1.17192,1705.4,1705.1,1.17206]
[1745345164813,1.6112,1705.3,1705.2,1.46284183]
[1745345165011,1.17203,1705.2,1705.1,0.00881186]
[1745345165212,4.37983,1705.2,1705.1,1e-08]
[1745345165407,10.99103,1705.2,1705.1,1e-08]
[1745345165818,11.08162418,1705.2,1705.1,1e-08]
[1745345166315,17.40362418,1705.2,1705.1,1e-08]
[1745345166712,17.31303,1705.2,1705.1,1e-08]
[1745345166911,17.40362752,1705.2,1705.1,1e-08]
[1745345168117,13.02379752,1705.2,1705.1,1.17210001]
[1745345168319,14.10523,1705.2,1705.1,1.17210001]
[1745345168517,17.31303,1705.2,1705.1,1.17210001]
[1745345168920,16.141,1705.2,1705.1,1.17210001]
[1745345169117,17.31303,1705.2,1705.1,1e-08]
[1745345173329,1.17251,1704.5,1704.4,0.392]
[1745345173824,41.97251,1704.5,1704.4,0.392]
[1745345174221,47.122,1704.5,1704.4,1.56458]
[1745345174421,47.122,1704.5,1704.4,4.77238]
[1745345174627,48.7342,1704.5,1704.4,4.77238]
[1745345175226,6.02237632,1704.5,1704.4,9.77238]
[1745345175424,6.02237632,1704.5,1704.4,11.26018]
[1745345176523,6.02237632,1704.5,1704.4,13.01738]
[1745345176727,6.02237632,1704.5,1704.4,8.01738]
[1745345177419,6.02237632,1704.5,1704.4,13.01738]
[1745345179014,6.02237632,1704.5,1704.4,13.87728]
[1745345182231,0.00881184,1705.3,1704.5,2.93129]
[1745345182428,0.00881184,1705.3,1705.0,3.2078]
[1745345182636,41.97207,1705.2,1705.1,1.7131]
[1745345183223,48.29407,1705.2,1705.1,1.7131]
[1745345183423,47.122,1705.2,1705.1,1.7131]
[1745345183623,48.29403,1705.2,1705.1,1.7131]
[1745345183824,47.122,1705.2,1705.1,1.7131]
[1745345184225,7.49403,1705.2,1705.1,1.7131]
[1745345184423,6.322,1705.2,1705.1,2.8852]
[1745345184628,6.322,1705.2,1705.1,7.8852]
[1745345184826,6.322,1705.2,1705.1,12.609]
[1745345185331,6.322,1705.2,1705.1,0.3918]
[1745345185636,7.49403,1705.2,1705.1,0.3918]
[1745345185832,8.88823,1705.2,1705.1,0.3918]
[1745345186029,7.7162,1705.2,1705.1,0.3918]
[1745345186423,8.88823,1705.2,1705.1,0.3918]
[1745345186825,17.09603,1705.2,1705.1,0.3918]
[1745345187330,18.82533,1705.2,1705.1,0.3918]
[1745345187926,1.17237,1704.8,1704.6,3.1292]
[1745345188235,7.49437,1704.8,1704.6,4.30162]
[1745345188425,1.7293,1704.7,1704.6,4.30162]
[1745345188727,6.322,1704.8,1704.7,1.17238]
[1745345188925,6.322,1704.8,1704.7,6.12958]
[1745345189125,1.7293,1705.1,1705.0,1.17217]
[1745345189328,1.3942,1705.2,1704.9,1.1722]
[1745345189531,1.7293,1705.1,1705.0,4.9572]
[1745345189730,1.7293,1705.1,1705.0,6.12937]
[1745345189926,0.00881184,1705.3,1705.0,4.9572]
[1745345190137,1.17203,1705.2,1705.1,1.6102]
[1745345190326,2.87323,1705.2,1705.1,1.6102]
[1745345190529,1.17218,1705.0,1704.7,3.2078]
[1745345190724,1.17218,1705.0,1704.8,1.6102]
[1745345190923,1.17224,1704.9,1704.8,1.6102]
[1745345191131,4.36952,1705.1,1704.8,2.78249]
[1745345191337,1.17219,1705.0,1704.8,2.78249]
[1745345191530,3.1974,1705.1,1704.9,1.6102]
[1745345191728,2.87337,1705.0,1704.9,1.6102]
[1745345192235,1.17231,1704.8,1704.7,1.389]
[1745345193138,7.49431,1704.8,1704.7,1.389]
[1745345194227,6.322,1704.8,1704.7,5.76918]
[1745345194526,6.322,1704.8,1704.7,6.2134]
[1745345195033,7.49431,1704.8,1704.7,3.0056]
[1745345195230,7.49431,1704.8,1704.5,4.5851]
[1745345195231,1.17245,1704.6,1704.5,4.5851]
[1745345195431,2.91269,1704.7,1704.5,8.60929]
[1745345195737,2.91269,1704.7,1704.6,1.6166]
[1745345196234,1.17234,1704.8,1704.6,2.78905]
[1745345196428,2.79484,1704.8,1704.6,1.6166]
[1745345196736,2.79484,1704.8,1704.6,2.78903]
[1745345196936,2.79484,1704.8,1704.6,1.6166]
[1745345197235,9.11684,1704.8,1704.7,1.6562]
[1745345197735,6.322,1704.8,1704.7,2.82858]
[1745345198236,1.17226,1704.9,1704.7,2.82858]
[1745345198534,1.17226,1704.9,1704.8,1.6562]
[1745345198734,2.79476,1704.9,1704.8,1.6562]
[1745345199237,9.11676,1704.9,1704.8,1.6562]
[1745345199438,9.11676,1704.9,1704.8,5.7622]
[1745345200238,6.322,1704.9,1704.8,6.93451]
[1745345201040,7.49424,1704.9,1704.8,5.7622]
[1745345201239,1.17224,1704.9,1704.8,5.7622]
[1745345201537,2.83092,1705.0,1704.8,6.93451]
[1745345202033,1.17224,1704.9,1704.8,5.7622]
[1745345202235,2.84444,1704.9,1704.8,4.106]
[1745345202642,1.6722,1704.9,1704.8,4.106]
[1745345202838,2.84444,1704.9,1704.8,4.106]
[1745345203038,1.6722,1704.9,1704.8,5.27831]
[1745345203241,7.9942,1704.9,1704.8,5.27831]
[1745345203442,4.50568,1704.9,1704.8,11.94321]
[1745345203639,0.00881184,1705.3,1705.2,1.17203]
[1745345203831,0.00881184,1705.3,1705.2,4.37983]
[1745345204034,0.00881184,1705.3,1705.2,9.37983]
[1745345204233,1.84e-06,1705.3,1705.2,17.36673]
[1745345204435,2.92824,1706.3,1705.2,17.36673]
[1745345204436,3.2078,1706.7,1705.5,2.92949]
[1745345204633,1.6722,1706.7,1706.2,3.2078]
[1745345204832,1.17116,1706.5,1706.2,3.2078]
[1745345205041,1.1709,1706.9,1706.4,3.2078]
[1745345205238,2.91137,1706.9,1706.5,1.7239]
[1745345205443,1.17099,1706.8,1706.5,1.73271186]
[1745345205636,1.2036,1707.0,1706.6,0.02936916]
[1745345205944,1.17093,1706.8,1706.6,0.02936916]
[1745345206147,2.9115,1706.7,1706.6,0.02936916]
[1745345206343,1.7405,1706.7,1706.6,0.02936916]
[1745345206846,40.8,1707.1,1706.6,1.20043916]
[1745345207042,1.7405,1707.0,1706.9,3.2078]
[1745345207242,2.9113,1707.0,1706.9,0.05878827]
[1745345207448,7.9113,1707.0,1706.9,0.05878827]
[1745345208146,6.7405,1707.0,1706.9,0.05878827]
[1745345208337,2.4549,1707.4,1706.9,3.26658827]
[1745345208645,23.4338,1707.8,1707.3,3.2078]
[1745345208838,23.4338,1707.8,1707.7,4.37812]
[1745345209146,3.2078,1708.7,1708.0,1.17007]
[1745345209348,3.2078,1708.5,1708.0,3.2078]
[1745345209642,1.17025,1707.8,1707.7,6.322]
[1745345209842,1.7651,1708.3,1707.7,6.40188613]
[1745345210041,1.1702,1707.9,1707.7,6.40188613]
[1745345210246,1.7651,1707.8,1707.7,3.28768613]
[1745345210643,1.17018,1707.9,1707.7,0.07988613]
[1745345210848,1.68521387,1707.8,1707.5,4.8587]
[1745345211238,1.17039,1707.6,1707.5,3.2078]
[1745345211849,1.17039,1707.6,1707.4,0.00878554]
[1745345212046,2.95171387,1707.8,1707.5,3.2078]
[1745345212047,1.68521387,1707.8,1707.5,3.2078]
[1745345212255,3.2078,1708.1,1707.7,3.2078]
[1745345212452,0.19892,1708.4,1707.9,3.2078]
[1745345212663,0.19892,1708.4,1708.1,4.37783]
[1745345212865,1.36876,1708.4,1708.3,3.2078]
[1745345213056,1.36876,1708.4,1708.0,2.92159]
[1745345213057,0.19892,1708.4,1708.0,6.12939]
[1745345213257,0.19892,1708.4,1708.1,4.37783]
[1745345213452,1.36876,1708.4,1708.2,1.7515]
[1745345213668,1.17006,1708.1,1707.9,4.9593]
[1745345213965,1.17018,1707.9,1707.7,3.2078]
[1745345214161,1.17034,1707.7,1707.5,3.2078]
[1745345214363,1.6877,1707.6,1707.5,3.2078]
[1745345214557,1.6877,1707.6,1707.4,0.00878554]
[1745345214763,1.14107082,1707.5,1707.4,0.00878554]
[1745345214970,2.92632,1707.4,1706.7,4.4447]
[1745345215155,2.92632,1707.4,1706.5,3.2078]
[1745345215156,1.17105,1706.7,1706.5,3.2078]
[1745345215356,2.82939082,1706.6,1706.5,3.2078]
[1745345215554,1.65832082,1706.6,1706.3,2.91274]
[1745345215757,6.04932082,1706.6,1706.2,10.91749677]
[1745345215958,6.04932082,1706.6,1706.2,7.70969677]
[1745345215959,3.2078,1706.5,1706.2,7.70969677]
[1745345216163,4.39969782,1706.6,1706.2,7.71848231]
[1745345216361,1.17117,1706.5,1706.3,3.2078]
[1745345216563,4.39969782,1706.6,1706.3,3.2078]
[1745345216758,4.39969782,1706.6,1706.5,4.37894]
[1745345216963,4.39969782,1706.6,1706.5,0.02112777]
[1745345217269,5.57080782,1706.6,1706.3,4.37907]
[1745345217469,1.17114,1706.5,1706.3,3.2078]
[1745345218161,1.17116,1706.5,1706.3,3.2078]
[1745345218871,1.17121,1706.4,1706.3,3.2078]
[1745345219568,0.00869782,1706.6,1706.3,3.2078]
[1745345219773,1.17976782,1706.6,1706.5,3.2078]
[1745345220461,0.00869782,1706.6,1706.5,3.2078]
[1745345220666,1.17976782,1706.6,1706.5,3.2078]
[1745345221476,1.17121,1706.4,1706.3,4.9405]
[1745345222568,1.17128,1706.3,1706.2,0.00878554]
[1745345222764,1.14186478,1706.3,1706.2,0.00878554]
[1745345222959,1.27177145,1706.2,1706.1,3.2078]
[1745345223571,2.94577145,1706.2,1706.1,3.2078]
[1745345223774,1.17148,1706.0,1705.9,3.2078]
[1745345224076,1.17162,1705.8,1705.7,4.977]
[1745345224470,1.17162,1705.8,1705.7,3.2078]
[1745345224673,1.17169,1705.7,1705.6,0.00878554]
[1745345225066,6.17169,1705.7,1705.6,0.00878554]
[1745345225262,12.49369,1705.7,1705.6,0.00878554]
[1745345225673,18.40369,1705.7,1705.6,5.54e-06]
[1745345225971,13.40369,1705.7,1705.6,5.54e-06]
[1745345226164,12.232,1705.7,1705.6,2.94096554]
[1745345226369,13.40369,1705.7,1705.6,1.76920554]
[1745345227469,12.232,1705.7,1705.6,1.76920554]
[1745345227777,6.322,1705.7,1705.6,6.14876554]
[1745345227964,6.322,1705.7,1705.6,11.14876554]
[1745345228172,0.93232844,1705.7,1705.6,17.03456554]
[1745345228477,1.17122,1706.4,1706.1,1.17136]
[1745345228670,1.17128,1706.3,1706.2,4.9288]
[1745345228972,1.17123,1706.4,1706.2,4.9288]
[1745345229174,6.322,1706.4,1706.2,4.9288]
[1745345229376,6.322,1706.4,1706.3,1.17128]
[1745345229872,1.17981782,1706.6,1706.3,1.17128]
[1745345229873,7.82e-06,1706.6,1706.5,1.17114]
[1745345230071,1.6462,1707.6,1706.7,2.9275]
[1745345230271,1.17055,1707.4,1707.0,4.37858]
[1745345230579,41.97058,1707.4,1707.0,4.37855]
[1745345230776,43.61678,1707.4,1707.1,1.1707]
[1745345230979,43.61678,1707.4,1707.2,3.2078]
[1745345231276,49.94756554,1707.4,1707.2,3.2372049]
[1745345231675,6.33078554,1707.4,1707.3,0.0588098]
[1745345231972,10.70910554,1707.4,1707.3,0.0588098]
[1745345232181,1.17066,1707.2,1707.1,0.00878554]
[1745345232377,1.7541,1707.3,1706.7,1.17099]
[1745345232574,1.17089,1706.9,1706.6,4.37884]
[1745345232972,1.17085,1707.0,1706.8,3.2078]
[1745345233174,7.49285,1707.0,1706.8,3.2078]
[1745345233367,1.17087,1706.9,1706.8,3.2078]
[1745345233678,2.92497,1706.9,1706.7,0.00878554]
[1745345233975,1.7541,1706.9,1706.7,0.00878554]
[1745345234177,8.0761,1706.9,1706.7,2.86018554]
[1745345234368,8.0761,1706.9,1706.8,3.2078]
[1745345235164,6.322,1706.9,1706.8,9.37873]
[1745345235372,6.322,1706.9,1706.8,4.37873]
[1745345235579,6.322,1706.9,1706.8,3.2078]
[1745345235880,6.322,1706.9,1706.8,1.17093]
[1745345236073,6.322,1706.9,1706.8,4.37873]
[1745345236469,6.322,1706.9,1706.8,5.24043]
[1745345237376,6.322,1706.9,1706.8,4.0695]
[1745345237575,6.322,1706.9,1706.8,2.03263]
[1745345237875,6.322,1706.9,1706.8,5.24043]
[1745345242474,7.49287,1706.9,1706.8,0.8617]
[1745345242781,6.322,1706.9,1706.8,0.8617]
[1745345242979,7.49287,1706.9,1706.8,0.8617]
[1745345243181,8.009,1706.9,1706.8,2.03263]
[1745345243477,9.17987,1706.9,1706.8,0.8617]
[1745345245968,1.17093,1706.8,1706.7,0.00878554]
[1745345246171,2.78803,1706.8,1706.7,0.00878554]
[1745345246375,9.11003,1706.8,1706.7,0.00878554]
[1745345246576,1.17121,1706.4,1706.2,9.0298]
[1745345246778,1.1712,1706.5,1706.3,1.17124]
[1745345246978,1.17121,1706.4,1706.3,2.94974]
[1745345247278,6.322,1706.5,1706.4,1.17121]
[1745345247485,6.322,1706.5,1706.4,4.37901]
[1745345248382,6.322,1706.5,1706.4,9.37901]
[1745345248884,6.322,1706.5,1706.4,4.37901]
[1745345250480,13.0155,1706.5,1706.3,0.00878554]
[1745345250685,1.17121,1706.4,1706.3,0.00878554]
[1745345250883,1.17153,1706.0,1705.8,10.91749677]
[1745345251184,1.7091,1705.9,1705.8,10.91749677]
[1745345251386,1.7091,1705.9,1705.8,12.08911677]
[1745345251587,4.83822,1706.0,1705.9,1.17155]
[1745345251783,0.00878554,1706.6,1706.5,1.17114]
[1745345252379,0.00878554,1706.6,1706.4,2.79297]
[1745345252684,0.00878554,1706.6,1706.4,6.0008]
[1745345252685,1.17988554,1706.6,1706.4,6.0008]
[1745345252885,1.7091,1706.5,1706.4,2.793]
[1745345253287,1.7091,1706.5,1706.4,2.79301]
[1745345253589,0.00878554,1706.6,1706.5,1.17114]
[1745345253781,0.00878554,1706.6,1706.5,2.89484]
[1745345254285,0.00878554,1706.6,1706.5,7.89484]
[1745345256085,75.5238,1707.7,1706.6,3.2078]
[1745345256086,1.2998,1707.5,1706.6,3.2078]
[1745345256282,1.6516,1707.6,1707.4,1.17052]
[1745345256481,2.822,1707.6,1707.4,1.17051]
[1745345256886,9.57758,1707.6,1706.8,3.2078]
[1745345257087,1.17073,1707.1,1706.9,1.17085]
[1745345257288,1.7265,1707.0,1706.8,3.2078]
[1745345257488,1.17087,1706.9,1706.8,3.21658554]
[1745345257687,1.17087,1706.9,1706.8,0.00878554]
[1745345257891,1.17121,1706.4,1706.3,7.70969677]
[1745345258287,7.49321,1706.4,1706.3,7.70969677]
[1745345258485,6.322,1706.4,1706.3,12.08877677]
[1745345258691,6.31321446,1706.4,1706.3,18.83097677]
[1745345260792,3.90328446,1706.4,1706.3,11.12128]
[1745345261186,0.00878554,1706.5,1706.4,1.17121]
[1745345261385,0.00878554,1706.5,1706.4,7.44761]
[1745345262192,6.33078554,1706.5,1706.4,7.44761]
[1745345262390,6.33078554,1706.5,1706.3,7.8418]
[1745345262695,1.778,1706.4,1706.3,9.01305]
[1745345262989,1.778,1706.4,1706.3,1.17128]
[1745345263294,13.1,1706.4,1706.2,0.00878554]
[1745345263490,2.48148,1706.3,1706.2,0.00878554]
[1745345263691,4.25748,1706.3,1706.2,0.00878554]
[1745345264196,10.57948,1706.3,1706.2,0.00878554]
[1745345264395,9.4082,1706.3,1706.2,1.18013554]
[1745345264695,9.4082,1706.3,1706.2,0.00878554]
[1745345265090,10.57948,1706.3,1706.2,0.00878554]
[1745345265296,9.4082,1706.3,1706.2,1.18013554]
[1745345265501,9.4082,1706.3,1706.2,0.49521239]
[1745345265693,9.4082,1706.3,1706.1,3.2078]
[1745345265997,10.57952,1706.3,1706.0,1.17145]
[1745345266186,10.57952,1706.3,1706.1,1.1714]
[1745345266389,10.57952,1706.3,1706.0,1.17143]
[1745345266592,10.57953,1706.3,1706.0,1.1772926]
[1745345266792,1.17135,1706.2,1706.0,1.1772926]
[1745345266993,1.7108,1706.1,1706.0,1.1772926]
[1745345267189,8.0328,1706.1,1705.5,3.67537684]
[1745345267389,11.2406,1706.1,1705.4,7.8428]
[1745345267592,1.17153,1706.0,1705.8,1.17161]
[1745345267896,1.17163,1705.8,1705.6,1.17171]
[1745345268200,1.7108,1705.7,1705.6,5.80676]
[1745345268393,1.7108,1705.7,1705.6,7.44036]
[1745345269196,8.0328,1705.7,1705.6,7.44036]
[1745345272398,1.17188,1705.5,1705.3,1.17196]
[1745345272601,2.79192,1705.4,1705.2,1.17203]
[1745345272802,2.7919,1705.4,1705.3,2.93284]
[1745345273290,1.17217,1705.0,1704.9,7.70969677]
[1745345274103,7.49417,1705.0,1704.9,7.70969677]
[1745345274899,6.322,1705.0,1704.9,7.70969677]
[1745345275103,8.087,1705.0,1704.9,1.17224]
[1745345275397,8.087,1705.0,1704.9,2.88164]
[1745345276002,6.322,1705.0,1704.9,7.51764]
[1745345276699,6.322,1705.0,1704.9,5.80824]
[1745345277001,6.322,1705.0,1704.9,5.80924]
[1745345277504,6.322,1705.0,1704.9,4.637]
[1745345278196,8.0369,1705.0,1704.9,4.637]
[1745345278396,8.0369,1705.0,1704.8,4.38011]
[1745345278801,6.322,1705.0,1704.9,1.17224]
[1745345278997,6.322,1705.0,1704.9,2.88334]
[1745345279198,6.322,1705.0,1704.9,7.88334]
[1745345279492,6.322,1705.0,1704.9,2.88334]
[1745345281103,3.3832974,1705.0,1704.9,7.88334]
[1745345281898,3.3832974,1705.0,1704.6,6.13879]
[1745345282202,1.782,1704.9,1704.8,1.17224]
[1745345283008,3.3832974,1705.0,1704.9,1.17224]
[1745345283200,2.95405,1705.2,1705.0,1.17214]
[1745345283401,1.782,1705.2,1705.0,1.17214]
[1745345283704,2.95404,1705.2,1705.0,1.17214]
[1745345284102,2.95404,1705.2,1704.9,6.3718]
[1745345284103,9.27604,1705.2,1704.9,7.54399]
[1745345284303,1.17212,1705.1,1704.6,6.13887]
[1745345284506,1.6465,1705.0,1704.8,3.2078]
[1745345284699,3.0541,1705.0,1704.6,3.2078]
[1745345284900,1.1724,1704.7,1704.5,1.17249]
[1745345285099,1.6465,1704.6,1704.5,1.17249]
[1745345285305,2.81895,1704.6,1704.4,1.17254]
[1745345286006,1.17252,1704.5,1704.3,2.94269]
[1745345286210,1.6465,1704.4,1704.3,7.58669]
[1745345286404,1.6465,1704.4,1704.3,4.9779]
[1745345286604,1.17265,1704.3,1704.2,7.8518]
[1745345286907,1.6465,1704.4,1704.0,4.9779]
[1745345286908,1.17273,1704.2,1704.0,4.9779]
[1745345287099,2.94553,1704.2,1704.0,4.9779]
[1745345287300,9.26753,1704.2,1704.0,6.15074]
[1745345287500,8.0948,1704.2,1704.0,4.9779]
[1745345288208,8.0948,1704.2,1704.0,4.38061]
[1745345288607,1.17279,1704.1,1704.0,3.2078]
[1745345288804,2.94559,1704.1,1703.9,7.22283]
[1745345289305,1.17286,1704.0,1703.9,1.4049]
[1745345289504,1.7728,1704.0,1703.9,1.4049]
[1745345289702,1.17305,1703.8,1703.5,4.38099]
[1745345290006,1.7728,1703.7,1703.6,1.17313]
[1745345290210,42.5728,1703.7,1703.5,4.38095]
[1745345290706,1.17313,1703.6,1703.3,7.8528]
[1745345290903,1.7324,1703.5,1703.4,1.17327]
[1745345292196,40.8,1703.7,1703.4,1.17327]
[1745345292197,40.8,1703.7,1703.6,1.17313]
[1745345292504,0.00878554,1703.8,1703.7,1.17307]
[1745345292906,5.00878554,1703.8,1703.4,7.8538]
[1745345293104,1.1731,1703.7,1703.4,5.81923]
[1745345293306,1.1731,1703.7,1703.4,1.17323]
[1745345293502,1.1731,1703.7,1703.3,6.321]
[1745345293703,7.50380554,1703.8,1703.5,1.17317]
[1745345294710,1.1731,1703.7,1703.4,5.99402]
[1745345295013,1.1731,1703.7,1703.4,4.38102]
[1745345295205,6.322,1703.7,1703.4,4.38102]
[1745345295509,7.4951,1703.7,1703.4,4.38102]
[1745345295916,7.4951,1703.7,1703.5,1.1732]
[1745345296104,1.17313,1703.6,1703.4,4.38104]
[1745345296499,7.49512,1703.7,1703.4,4.38104]
[1745345296699,7.49512,1703.7,1703.4,2.92644]
[1745345296700,1.17313,1703.6,1703.4,2.92644]
[1745345297011,7.49511,1703.7,1703.4,2.92644]
[1745345297214,7.49511,1703.7,1703.2,3.2078]
[1745345297215,2.93284,1703.6,1703.2,3.2078]
[1745345297513,1.17326,1703.5,1703.3,4.647]
[1745345297807,1.17327,1703.4,1703.2,1.7532]
[1745345298011,1.17327,1703.4,1703.2,2.92659]
[1745345298208,7.49532,1703.4,1703.2,2.9266]
[1745345298409,7.49532,1703.4,1703.2,1.7532]
[1745345298609,6.322,1703.4,1702.8,6.61687121]
[1745345298809,1.1734,1703.3,1703.1,1.17347]
[1745345299014,1.17346,1703.2,1703.0,2.92673]
[1745345299213,1.17348,1703.1,1702.9,1.1736]
[1745345299418,1.17355,1703.0,1702.8,6.07194]
[1745345299717,1.17355,1703.0,1702.8,2.86413]
[1745345299917,1.3864,1703.1,1702.6,5.902]
[1745345300215,7.7084,1703.1,1702.7,2.86422]
[1745345300419,1.17363,1702.9,1702.7,7.51121]
[1745345300603,1.17363,1702.9,1702.7,5.82071]
[1745345300804,1.17358,1703.0,1702.8,1.17369]
[1745345301215,4.38124,1703.2,1703.0,1.17355]
[1745345301713,1.17348,1703.1,1702.9,2.86407]
[1745345302112,7.49548,1703.1,1702.9,2.86407]
[1745345302312,6.322,1703.1,1702.9,1.6905]
[1745345302511,1.17361,1703.0,1702.6,7.8558]
[1745345302707,7.6912,1703.1,1702.6,7.8558]
[1745345302909,1.17369,1702.8,1702.5,6.2709]
[1745345303111,6.322,1702.8,1702.7,1.17375]
[1745345303314,6.33078554,1702.8,1702.7,1.17375]
[1745345303513,6.33078554,1702.8,1702.7,2.79665]
[1745345304211,0.00878554,1702.8,1702.7,2.79665]
[1745345304410,1.3692,1703.1,1703.0,1.17355]
[1745345304803,1.3692,1703.1,1702.9,1.17356]
[1745345305008,1.3692,1703.1,1703.0,1.17355]
[1745345305208,7.6912,1703.1,1703.0,1.17355]
[1745345306310,0.206249,1703.1,1703.0,1.17355]
[1745345307120,1.18221554,1703.2,1703.0,1.17355]
[1745345307310,1.7577,1703.1,1703.0,1.17355]
[1745345307707,0.00878554,1703.2,1703.1,1.17348]
[1745345308318,3.2078,1703.6,1703.5,1.1732]
[1745345308512,8.45084,1703.8,1703.6,1.17313]
[1745345308707,7.2778,1703.8,1703.4,4.54765]